lending/lending_fUSD_20241214
["ID","MTS","AMOUNT","RATE_DAILY","PERIOD"]
[345342432,1734162640900,-500.0,0.00021097,3]
[345342434,1734162640910,-500.0,0.00021097,3]
[345342436,1734162640919,-500.0,0.00021097,3]
[345342438,1734162640927,-500.0,0.00021097,3]
[345342440,1734162640936,-500.0,0.00021097,3]
[345342442,1734162640945,-500.0,0.00021097,3]
[345342444,1734162640955,-159.91,0.00021097,3]
[345342446,1734162640965,-500.0,0.00021097,3]
[345342448,1734162640974,-500.0,0.00021097,3]
[345342450,1734162640983,-500.0,0.00021097,3]
[345342451,1734162640992,-500.0,0.00021097,3]
[345342453,1734162641001,-500.0,0.00021097,3]
[345342456,1734162641011,-500.0,0.00021097,3]
[345342458,1734162641021,-598.52,0.00021097,3]
[345342459,1734162641030,-4000.0,0.000212,30]
[345342461,1734162641039,-4000.0,0.000212,30]
[345342463,1734162641048,-292.0,0.000212,9]
[345342465,1734162641057,-282.72,0.000212,2]
[345342468,1734162641068,-399.53649055,0.00021246,2]
[345342470,1734162641078,-500.0,0.00021247,3]
[345342472,1734162641092,-500.0,0.00021247,3]
[345342474,1734162641102,-500.0,0.00021247,3]
[345342476,1734162641111,-553.58,0.00021247,3]
[345342478,1734162641120,-577.05,0.00021247,3]
[345342480,1734162641130,-500.0,0.00021247,3]
[345342482,1734162641141,-500.0,0.00021247,3]
[345342484,1734162641150,-314.62,0.00021247,3]
[345342486,1734162641160,-176.3,0.00021247,3]
[345342488,1734162641171,-500.0,0.00021247,3]
[345342490,1734162641181,-150.121416,0.00021248,9]
[345342492,1734162641190,-150.121416,0.00021248,8]
[345342494,1734162641200,-500.0,0.00021248,3]
[345342496,1734162641209,-500.0,0.00021248,3]
[345342498,1734162641219,-500.0,0.00021248,3]
[345342500,1734162641229,-500.0,0.00021248,3]
[345342502,1734162641238,-641.58,0.00021248,3]
[345342504,1734162641247,-500.0,0.00021248,3]
[345342506,1734162641257,-500.0,0.00021248,3]
[345342508,1734162641266,-523.52,0.00021248,3]
[345342510,1734162641278,-500.0,0.00021248,3]
[345342512,1734162641287,-500.0,0.00021248,3]
[345342514,1734162641296,-419.55,0.00021248,3]
[345342516,1734162641305,-500.0,0.00021248,3]
[345342518,1734162641314,-500.0,0.00021248,3]
[345342520,1734162641324,-500.0,0.00021248,3]
[345342522,1734162641333,-150.121416,0.00021249,2]
[345342524,1734162641342,-150.121416,0.00021249,3]
[345342526,1734162641351,-150.121416,0.00021249,4]
[345342528,1734162641361,-150.121416,0.00021249,5]
[345342530,1734162641370,-176.121416,0.00021249,6]
[345342532,1734162641379,-150.121416,0.00021249,7]
[345342534,1734162641389,-150.121416,0.00021249,8]
[345342536,1734162641398,-150.121416,0.00021249,9]
[345342538,1734162641407,-500.0,0.00021249,3]
[345342540,1734162641417,-500.0,0.00021249,3]
[345342542,1734162641425,-197.81,0.00021249,3]
[345342544,1734162641435,-500.0,0.00021249,3]
[345342546,1734162641444,-500.0,0.00021249,3]
[345342548,1734162641454,-500.0,0.00021249,3]
[345342550,1734162641463,-500.0,0.00021249,3]
[345342552,1734162641472,-241.86,0.00021249,3]
[345342554,1734162641482,-500.0,0.00021249,3]
[345342556,1734162641492,-500.0,0.00021249,3]
[345342558,1734162641502,-500.0,0.00021249,3]
[345342560,1734162641514,-498.47605275,0.00021249,3]
[345342562,1734162641523,-183.56,0.00021249,3]
[345342564,1734162641532,-1000.0,0.00021249,2]
[345342566,1734162641542,-500.0,0.00021249,3]
[345342568,1734162641551,-500.0,0.00021249,3]
[345342570,1734162641560,-597.52,0.00021249,3]
[345342572,1734162641569,-500.0,0.00021249,3]
[345342574,1734162641579,-443.62,0.00021249,3]
[345342576,1734162641588,-500.0,0.00021249,3]
[345342578,1734162641598,-500.0,0.00021249,3]
[345342580,1734162641607,-500.0,0.00021249,3]
[345342582,1734162641616,-395.23,0.00021249,3]
[345342584,1734162641626,-514.24,0.00021249,3]
[345342586,1734162641635,-500.0,0.00021249,3]
[345342588,1734162641644,-500.0,0.00021249,3]
[345342590,1734162641653,-500.0,0.00021249,3]
[345342592,1734162641663,-353.81,0.00021249,3]
[345342594,1734162641672,-625.59,0.00021249,3]
[345342596,1734162641682,-500.0,0.00021249,3]
[345342598,1734162641691,-500.0,0.00021249,3]
[345342600,1734162641701,-500.0,0.00021249,3]
[345342602,1734162641711,-500.0,0.00021249,3]
[345342604,1734162641720,-500.0,0.00021249,3]
[345342606,1734162641730,-534.44,0.00021249,3]
[345342608,1734162641739,-500.0,0.00021249,3]
[345342610,1734162641748,-376.3,0.00021249,3]
[345342612,1734162641758,-752.68,0.00021249,2]
[345342614,1734162641768,-491.35,0.00021249,3]
[345342615,1734162641777,-500.0,0.00021249,3]
[345342616,1734162641787,-500.0,0.00021249,3]
[345342617,1734162641796,-336.16,0.00021249,3]
[345342618,1734162641806,-500.0,0.00021249,3]
[345342619,1734162641815,-500.0,0.00021249,3]
[345342620,1734162641824,-500.0,0.00021249,3]
[345342621,1734162641833,-500.0,0.00021249,3]
[345342622,1734162641842,-274.22232083,0.00021249,3]
[345342623,1734162641852,-500.0,0.00021249,3]
[345342624,1734162641861,-500.0,0.00021249,3]
[345342626,1734162641871,-500.0,0.00021249,3]
[345342628,1734162641880,-302.99,0.00021249,3]
[345342630,1734162641889,-500.0,0.00021249,3]
[345342632,1734162641898,-513.26,0.00021249,3]
[345342634,1734162641908,-519.38,0.00021249,3]
[345342636,1734162641917,-261.84,0.00021249,3]
[345342638,1734162641926,-500.0,0.00021249,3]
[345342640,1734162641935,-294.67,0.00021249,3]
[345342642,1734162641944,-500.0,0.00021249,3]
[345342644,1734162641954,-500.0,0.00021249,3]
[345342646,1734162641963,-500.0,0.00021249,3]
[345342648,1734162641973,-500.0,0.00021249,3]
[345342650,1734162641982,-500.0,0.00021249,3]
[345342652,1734162641991,-500.0,0.00021249,3]
[345342654,1734162642001,-500.0,0.00021249,3]
[345342656,1734162642010,-500.0,0.00021249,3]
[345342658,1734162642020,-500.0,0.00021249,3]
[345342660,1734162642029,-500.0,0.00021249,3]
[345342662,1734162642039,-500.0,0.00021249,3]
[345342664,1734162642048,-500.0,0.00021249,3]
[345342666,1734162642057,-500.0,0.00021249,3]
[345342668,1734162642067,-500.0,0.00021249,3]
[345342670,1734162642076,-500.0,0.00021249,3]
[345342672,1734162642086,-459.7,0.00021249,3]
[345342674,1734162642098,-305.54,0.00021249,3]
[345342676,1734162642108,-500.0,0.00021249,3]
[345342678,1734162642117,-500.0,0.00021249,3]
[345342680,1734162642127,-500.0,0.00021249,3]
[345342682,1734162642137,-500.0,0.00021249,3]
[345342684,1734162642146,-500.0,0.00021249,3]
[345342686,1734162642155,-500.0,0.00021249,3]
[345342688,1734162642167,-500.0,0.00021249,3]
[345342690,1734162642177,-500.0,0.00021249,3]
[345342692,1734162642186,-500.0,0.00021249,3]
[345342694,1734162642195,-500.0,0.00021249,3]
[345342696,1734162642205,-489.5,0.00021249,3]
[345342698,1734162642214,-500.0,0.00021249,3]
[345342700,1734162642224,-535.67,0.00021249,3]
[345342702,1734162642233,-500.0,0.00021249,3]
[345342704,1734162642242,-500.0,0.00021249,3]
[345342706,1734162642252,-500.0,0.00021249,3]
[345342708,1734162642262,-189.68,0.00021249,3]
[345342710,1734162642271,-500.0,0.00021249,3]
[345342712,1734162642280,-475.01,0.00021249,3]
[345342714,1734162642289,-500.0,0.00021249,3]
[345342716,1734162642299,-243.4,0.00021249,3]
[345342718,1734162642308,-506.08,0.00021249,3]
[345342720,1734162642317,-500.0,0.00021249,3]
[345342722,1734162642326,-500.0,0.00021249,3]
[345342724,1734162642336,-500.0,0.00021249,3]
[345342726,1734162642345,-500.0,0.00021249,3]
[345342728,1734162642354,-500.0,0.00021249,3]
[345342730,1734162642364,-500.0,0.00021249,3]
[345342732,1734162642373,-500.0,0.00021249,3]
[345342734,1734162642382,-500.0,0.00021249,3]
[345342736,1734162642391,-159.7,0.00021249,3]
[345342738,1734162642400,-500.0,0.00021249,3]
[345342740,1734162642410,-500.0,0.00021249,3]
[345342742,1734162642420,-486.66,0.00021249,3]
[345342744,1734162642430,-500.0,0.00021249,3]
[345342746,1734162642439,-500.0,0.00021249,3]
[345342748,1734162642449,-294.58,0.00021249,3]
[345342750,1734162642459,-500.0,0.00021249,3]
[345342752,1734162642468,-320.73,0.00021249,3]
[345342754,1734162642477,-521.36,0.00021249,3]
[345342756,1734162642487,-500.0,0.00021249,3]
[345342758,1734162642496,-500.0,0.00021249,3]
[345342760,1734162642505,-500.0,0.00021249,3]
[345342762,1734162642514,-500.0,0.00021249,3]
[345342764,1734162642524,-500.0,0.00021249,3]
[345342766,1734162642533,-500.0,0.00021249,3]
[345342767,1734162642543,-500.0,0.00021249,3]
[345342770,1734162642552,-500.0,0.00021249,3]
[345342771,1734162642561,-500.0,0.00021249,3]
[345342774,1734162642570,-355.08,0.00021249,3]
[345342775,1734162642580,-500.0,0.00021249,3]
[345342777,1734162642590,-500.0,0.00021249,3]
[345342779,1734162642599,-500.0,0.00021249,3]
[345342782,1734162642609,-500.0,0.00021249,3]
[345342783,1734162642618,-500.0,0.00021249,3]
[345342785,1734162642627,-500.0,0.00021249,3]
[345342788,1734162642636,-556.98,0.00021249,3]
[345342789,1734162642646,-500.0,0.00021249,3]
[345342791,1734162642655,-500.0,0.00021249,3]
[345342794,1734162642664,-500.0,0.00021249,3]
[345342795,1734162642673,-380.26,0.00021249,3]
[345342797,1734162642683,-500.0,0.00021249,3]
[345342799,1734162642692,-636.28,0.00021249,3]
[345342801,1734162642702,-500.0,0.00021249,3]
[345342804,1734162642712,-500.0,0.00021249,3]
[345342818,1734162642838,-500.0,0.00021249,3]
[345342820,1734162642848,-500.0,0.00021249,3]
[345342822,1734162642857,-500.0,0.00021249,3]
[345342824,1734162642867,-500.0,0.00021249,3]
[345342826,1734162642876,-500.0,0.00021249,3]
[345342828,1734162642885,-500.0,0.00021249,3]
[345342830,1734162642894,-500.0,0.00021249,3]
[345342832,1734162642903,-500.0,0.00021249,3]
[345342834,1734162642912,-500.0,0.00021249,3]
[345342836,1734162642921,-490.63,0.00021249,3]
[345342838,1734162642931,-500.0,0.00021249,3]
[345342840,1734162642940,-500.0,0.00021249,3]
[345342842,1734162642949,-558.05,0.00021249,3]
[345342844,1734162642962,-500.0,0.00021249,3]
[345342846,1734162642971,-500.0,0.00021249,3]
[345342848,1734162642981,-500.0,0.00021249,3]
[345342850,1734162642990,-500.0,0.00021249,3]
[345342852,1734162643000,-500.0,0.00021249,3]
[345342854,1734162643009,-500.0,0.00021249,3]
[345342856,1734162643019,-500.0,0.00021249,3]
[345342858,1734162643029,-500.0,0.00021249,3]
[345342860,1734162643039,-500.0,0.00021249,3]
[345342862,1734162643049,-500.0,0.00021249,3]
[345342864,1734162643059,-232.51,0.00021249,3]
[345342867,1734162643068,-500.0,0.00021249,3]
[345342869,1734162643078,-500.0,0.00021249,3]
[345342871,1734162643090,-500.0,0.00021249,3]
[345342874,1734162643101,-500.0,0.00021249,3]
[345342876,1734162643110,-432.13,0.00021249,3]
[345342878,1734162643120,-500.0,0.00021249,3]
[345342880,1734162643131,-500.0,0.00021249,3]
[345342883,1734162643140,-500.0,0.00021249,3]
[345342885,1734162643150,-500.0,0.00021249,3]
[345342887,1734162643160,-300.9,0.00021249,3]
[345342889,1734162643170,-500.0,0.00021249,3]
[345342891,1734162643178,-500.0,0.00021249,3]
[345342893,1734162643187,-500.0,0.00021249,3]
[345342895,1734162643197,-500.0,0.00021249,3]
[345342897,1734162643208,-500.0,0.00021249,3]
[345342899,1734162643218,-500.0,0.00021249,3]
[345342901,1734162643227,-500.0,0.00021249,3]
[345342903,1734162643237,-500.0,0.00021249,3]
[345342905,1734162643246,-500.0,0.00021249,3]
[345342907,1734162643256,-500.0,0.00021249,3]
[345342909,1734162643265,-456.8,0.00021249,3]
[345342911,1734162643274,-500.0,0.00021249,3]
[345342913,1734162643284,-500.0,0.00021249,3]
[345342915,1734162643294,-500.0,0.00021249,3]
[345342917,1734162643303,-500.0,0.00021249,3]
[345342919,1734162643313,-500.0,0.00021249,3]
[345342921,1734162643323,-500.0,0.00021249,3]
[345342923,1734162643331,-500.0,0.00021249,3]
[345342925,1734162643341,-500.0,0.00021249,3]
[345342927,1734162643351,-500.0,0.00021249,3]
[345342929,1734162643360,-500.0,0.00021249,3]
[345342931,1734162643370,-500.0,0.00021249,3]
[345342933,1734162643379,-500.0,0.00021249,3]
[345342934,1734162643388,-500.0,0.00021249,3]
[345342936,1734162643397,-500.0,0.00021249,3]
[345342939,1734162643407,-500.0,0.00021249,3]
[345342941,1734162643416,-184.81,0.00021249,3]
[345342943,1734162643426,-500.0,0.00021249,3]
[345342945,1734162643435,-364.93,0.00021249,3]
[345342947,1734162643445,-500.0,0.00021249,3]
[345342949,1734162643458,-500.0,0.00021249,3]
[345342951,1734162643469,-500.0,0.00021249,3]
[345342953,1734162643478,-500.0,0.00021249,3]
[345342955,1734162643487,-500.0,0.00021249,3]
[345342957,1734162643497,-500.0,0.00021249,3]
[345342958,1734162643506,-500.0,0.00021249,3]
[345342960,1734162643515,-500.0,0.00021249,3]
[345342962,1734162643523,-302.4684088,0.00021249,3]
[345342964,1734162643532,-277.19,0.00021249,3]
[345342966,1734162643541,-500.0,0.00021249,3]
[345342968,1734162643551,-500.0,0.00021249,3]
[345342970,1734162643560,-500.0,0.00021249,3]
[345342972,1734162643569,-500.0,0.00021249,3]
[345342974,1734162643579,-500.0,0.00021249,3]
[345342976,1734162643589,-500.0,0.00021249,3]
[345342978,1734162643598,-500.0,0.00021249,3]
[345342980,1734162643607,-395.52,0.00021249,3]
[345342982,1734162643616,-500.0,0.00021249,3]
[345342984,1734162643625,-500.0,0.00021249,3]
[345342986,1734162643635,-500.0,0.00021249,3]
[345342988,1734162643644,-500.0,0.00021249,3]
[345342990,1734162643653,-500.0,0.00021249,3]
[345342992,1734162643663,-500.0,0.00021249,3]
[345342994,1734162643672,-500.0,0.00021249,3]
[345342996,1734162643681,-500.0,0.00021249,3]
[345342998,1734162643691,-500.0,0.00021249,3]
[345343000,1734162643700,-500.0,0.00021249,3]
[345343002,1734162643710,-500.0,0.00021249,3]
[345343004,1734162643719,-500.0,0.00021249,3]
[345343006,1734162643728,-500.0,0.00021249,3]
[345343008,1734162643737,-225.68,0.00021249,3]
[345343010,1734162643747,-500.0,0.00021249,3]
[345343012,1734162643756,-500.0,0.00021249,3]
[345343014,1734162643765,-500.0,0.00021249,3]
[345343016,1734162643774,-500.0,0.00021249,3]
[345343018,1734162643783,-500.0,0.00021249,3]
[345343020,1734162643792,-500.0,0.00021249,3]
[345343022,1734162643802,-500.0,0.00021249,3]
[345343024,1734162643811,-500.0,0.00021249,3]
[345343026,1734162643820,-392.82,0.00021249,3]
[345343028,1734162643830,-477.74,0.00021249,3]
[345343030,1734162643839,-223.95,0.00021249,3]
[345343032,1734162643848,-500.0,0.00021249,3]
[345343034,1734162643858,-500.0,0.00021249,3]
[345343036,1734162643868,-500.0,0.00021249,3]
[345343038,1734162643877,-500.0,0.00021249,3]
[345343040,1734162643887,-500.0,0.00021249,3]
[345343042,1734162643896,-500.0,0.00021249,3]
[345343044,1734162643906,-500.0,0.00021249,3]
[345343046,1734162643916,-500.0,0.00021249,3]
[345343048,1734162643925,-500.0,0.00021249,3]
[345343050,1734162643935,-500.0,0.00021249,3]
[345343052,1734162643944,-432.65,0.00021249,3]
[345343054,1734162643955,-500.0,0.00021249,3]
[345343056,1734162643964,-500.0,0.00021249,3]
[345343058,1734162643974,-500.0,0.00021249,3]
[345343060,1734162643984,-633.98,0.00021249,3]
[345343062,1734162643994,-500.0,0.00021249,3]
[345343064,1734162644003,-500.0,0.00021249,3]
[345343066,1734162644013,-500.0,0.00021249,3]
[345343068,1734162644024,-500.0,0.00021249,3]
[345343070,1734162644034,-500.0,0.00021249,3]
[345343072,1734162644044,-500.0,0.00021249,3]
[345343074,1734162644054,-500.0,0.00021249,3]
[345343076,1734162644063,-472.94,0.00021249,3]
[345343078,1734162644073,-500.0,0.00021249,3]
[345343080,1734162644082,-205.89071155,0.00021249,3]
[345343081,1734162644094,-500.0,0.00021249,3]
[345343082,1734162644103,-152.27,0.00021249,3]
[345343083,1734162644113,-461.19,0.00021249,3]
[345343084,1734162644122,-236.24,0.00021249,3]
[345343085,1734162644132,-500.0,0.00021249,3]
[345343086,1734162644142,-352.24,0.00021249,3]
[345343087,1734162644152,-500.0,0.00021249,3]
[345343088,1734162644161,-500.0,0.00021249,3]
[345343089,1734162644171,-500.0,0.00021249,3]
[345343090,1734162644182,-500.0,0.00021249,3]
[345343091,1734162644191,-500.0,0.00021249,3]
[345343092,1734162644200,-500.0,0.00021249,3]
[345343093,1734162644212,-243.12,0.00021249,3]
[345343094,1734162644222,-529.88,0.00021249,3]
[345343095,1734162644232,-529.88,0.00021249,3]
[345343096,1734162644241,-529.88,0.00021249,3]
[345343097,1734162644250,-529.88,0.00021249,3]
[345343098,1734162644259,-529.88,0.00021249,3]
[345343099,1734162644268,-529.88,0.00021249,3]
[345343100,1734162644277,-529.88,0.00021249,3]
[345343101,1734162644286,-529.88,0.00021249,3]
[345343102,1734162644295,-529.88,0.00021249,3]
[345343103,1734162644304,-529.88,0.00021249,3]
[345343104,1734162644314,-529.88,0.00021249,3]
[345343105,1734162644323,-529.88,0.00021249,3]
[345343106,1734162644332,-416.94,0.00021249,3]
[345343107,1734162644341,-529.88,0.00021249,3]
[345343109,1734162644350,-529.88,0.00021249,3]
[345343111,1734162644359,-529.88,0.00021249,3]
[345343112,1734162644368,-529.88,0.00021249,3]
[345343113,1734162644377,-529.88,0.00021249,3]
[345343114,1734162644386,-529.88,0.00021249,3]
[345343115,1734162644395,-529.88,0.00021249,3]
[345343117,1734162644404,-529.88,0.00021249,3]
[345343119,1734162644414,-529.88,0.00021249,3]
[345343121,1734162644423,-529.88,0.00021249,3]
[345343123,1734162644432,-529.97,0.00021249,3]
[345343124,1734162644441,-500.0,0.00021249,3]
[345343125,1734162644450,-402.64,0.00021249,3]
[345343126,1734162644461,-500.0,0.00021249,3]
[345343127,1734162644470,-500.0,0.00021249,3]
[345343128,1734162644480,-500.0,0.00021249,3]
[345343129,1734162644489,-500.0,0.00021249,3]
[345343130,1734162644499,-175.78,0.00021249,3]
[345343131,1734162644507,-500.0,0.00021249,3]
[345343132,1734162644517,-413.15,0.00021249,3]
[345343133,1734162644526,-201.24,0.00021249,3]
[345343134,1734162644535,-1000.0,0.00021249,3]
[345343135,1734162644544,-797.99561546,0.00021249,3]
[345343136,1734162644554,-500.0,0.00021249,3]
[345343137,1734162644566,-500.0,0.00021249,3]
[345343138,1734162644575,-500.0,0.00021249,3]
[345343139,1734162644584,-500.0,0.00021249,3]
[345343140,1734162644594,-500.0,0.00021249,3]
[345343141,1734162644603,-500.0,0.00021249,3]
[345343142,1734162644612,-500.0,0.00021249,3]
[345343143,1734162644621,-500.0,0.00021249,3]
[345343144,1734162644631,-500.0,0.00021249,3]
[345343145,1734162644640,-500.0,0.00021249,3]
[345343146,1734162644649,-500.0,0.00021249,3]
[345343147,1734162644658,-500.0,0.00021249,3]
[345343148,1734162644668,-500.0,0.00021249,3]
[345343149,1734162644677,-500.0,0.00021249,3]
[345343150,1734162644686,-500.0,0.00021249,3]
[345343151,1734162644696,-500.0,0.00021249,3]
[345343152,1734162644706,-500.0,0.00021249,3]
[345343153,1734162644715,-500.0,0.00021249,3]
[345343154,1734162644725,-500.0,0.00021249,3]
[345343155,1734162644733,-500.0,0.00021249,3]
[345343156,1734162644742,-572.64,0.00021249,3]
[345343157,1734162644751,-475.52,0.00021249,3]
[345343158,1734162644760,-500.0,0.00021249,3]
[345343159,1734162644770,-500.0,0.00021249,3]
[345343160,1734162644779,-500.0,0.00021249,3]
[345343161,1734162644788,-500.0,0.00021249,3]
[345343162,1734162644797,-500.0,0.00021249,3]
[345343163,1734162644806,-500.0,0.00021249,3]
[345343164,1734162644815,-20000.0,0.0002125,3]
[345343165,1734162644824,-191010.9538791,0.0002125,4]
[345343166,1734162644833,-4633.6645752,0.0002125,2]
[345343167,1734162644841,-6283.1812228,0.0002125,2]
[345343168,1734162644851,-700.0,0.0002125,2]
[345343169,1734162644860,-704.0,0.0002125,2]
[345343170,1734162644869,-10910272.80517484,0.0002125,2]
[345343171,1734162645464,400.0,0.00017414,2]
[345343172,1734162645480,-426.29565446,0.00019962,2]
[345343173,1734162645493,-1252.16984138,0.00019962,2]
[345343174,1734162645504,-161.68671116,0.00019962,2]
[345343175,1734162645514,-500.0,0.00021095,3]
[345343176,1734162645643,-500.0,0.00021248,3]
[345343177,1734162645653,-500.0,0.00021248,3]
[345343178,1734162645664,-500.0,0.00021249,3]
[345343179,1734162645675,-500.0,0.00021249,3]
[345343180,1734162645685,-500.0,0.00021249,3]
[345343181,1734162645694,-276.5082177,0.00021249,3]
[345343182,1734162645706,-223.4917823,0.00021249,3]
[345343183,1734162645715,-491.71096699,0.00021249,3]
[345343184,1734162645727,-8.28903301,0.00021249,3]
[345343185,1734162645737,-500.0,0.00021249,3]
[345343186,1734162645746,-406.29,0.00021249,3]
[345343187,1734162645756,-500.0,0.00021249,3]
[345343188,1734162645765,-500.0,0.00021249,3]
[345343189,1734162645775,-325.18096692,0.00021249,3]
[345343190,1734162645787,-178.28903308,0.00021249,3]
[345343191,1734162645796,-18052.98421128,0.0002125,2]
[345343192,1734162645807,-3197.54513101,0.0002125,2]
[345343193,1734162645818,-299.04858715,0.0002125,2]
[345343194,1734162645829,-7764.0017081,0.0002125,2]
[345343195,1734162646185,-2096.34144121,0.000209,2]
[345343196,1734162646248,-403.65855879,0.000209,2]
[345343197,1734162646257,-1406.81642125,0.0002125,2]
[345343198,1734162646341,-1139.1771887,0.0002125,2]
[345343199,1734162646372,-8896.85184912,0.0002125,2]
[345343200,1734162646442,-9972.7366839,0.0002125,2]
[345343201,1734162646455,-10167.0,0.0002125,2]
[345343202,1734162747922,3757.89943146,0.00013031,7]
[345343203,1734162842763,150.0,0.00021,120]
[345343204,1734163074840,157.09,0.00010137,2]
[345343205,1734163079454,908.58,0.00019322,120]
[345343206,1734163153436,450.0,0.00013,2]
[345343207,1734163206646,1851.65992976,0.00021,120]
[345343210,1734163291365,41939.0,0.00015,2]
[345343211,1734163627148,-161.44947191,0.00015065,2]
[345343212,1734163629102,-14.18052809,0.00015065,2]
[345343213,1734163629123,-1818.72944358,0.00015734,2]
[345343214,1734163646127,-199.30568235,0.00015734,2]
[345343215,1734163646146,-173.42,0.00015834,2]
[345343216,1734163646165,-266.90777319,0.00015834,2]
[345343217,1734163646185,-175.63,0.00016571,2]
[345343218,1734163646205,-780.03,0.00016916,2]
[345343219,1734163646225,-462.54758455,0.00017414,2]
[345343221,1734163755092,-37.45241545,0.00017414,2]
[345343222,1734163755117,-175.63,0.00018078,2]
[345343223,1734163755138,-2844.42,0.00018809,2]
[345343224,1734163755159,-200.0,0.00018843,2]
[345343225,1734163755179,-300.0,0.00018852,2]
[345343226,1734163755199,-231.99,0.0001886,2]
[345343227,1734163755221,-155.26,0.00019098,30]
[345343228,1734163755245,-150.48609969,0.0001911,2]
[345343229,1734163793412,1500.0,0.00018931,2]
[345343230,1734163795159,1000.0,0.00018931,2]
[345343231,1734163804974,1976.35,0.00018897,2]
[345343232,1734163831836,166.81,0.00018861,2]
[345343238,1734163832347,-153.0,0.00019157,2]
[345343239,1734163832357,-156.48,0.00019157,2]
[345343240,1734163832367,-156.48,0.00019164,2]
[345343241,1734163832377,-156.48,0.00019171,2]
[345343242,1734163832387,-156.48,0.00019178,2]
[345343243,1734163832396,-780.03,0.0001918,2]
[345343244,1734163832406,-156.48,0.00019184,2]
[345343245,1734163832415,-156.48,0.00019191,2]
[345343246,1734163832425,-250.0,0.00019195,2]
[345343247,1734163832435,-156.48,0.00019198,2]
[345343248,1734163832444,-156.48,0.00019205,2]
[345343249,1734163832453,-156.48,0.00019212,2]
[345343250,1734163832463,-156.48,0.00019219,2]
[345343251,1734163832481,-156.48,0.00019226,2]
[345343252,1734163832496,-156.48,0.00019232,2]
[345343253,1734163832507,-156.48,0.00019239,2]
[345343254,1734163832516,-179.75,0.00019245,2]
[345343255,1734163832526,-156.48,0.00019246,2]
[345343256,1734163832537,-156.48,0.00019253,2]
[345343257,1734163832547,-1040.14,0.00019267,2]
[345343258,1734163832557,-250.0,0.0001927,2]
[345343259,1734163832568,-1525.01,0.00019284,2]
[345343260,1734163832578,-250.0,0.00019291,2]
[345343261,1734163832589,-500.0,0.00019302,2]
[345343262,1734163832598,-1054.45,0.0001938,2]
[345343263,1734163832609,-300.0,0.00019584,2]
[345343264,1734163832619,-175.63,0.00019584,2]
[345343265,1734163832628,-1049.98,0.00019637,2]
[345343266,1734163832639,-173.42,0.00019793,2]
[345343267,1734163832649,-200.0,0.00019819,2]
[345343268,1734163832659,-3058.24,0.00019824,2]
[345343269,1734163832669,-157.09,0.00019895,2]
[345343270,1734163832679,-800.0,0.000199,7]
[345343271,1734163832689,-1700.0,0.0002,7]